{"text_format":"2","workbook":"xlsx","n_sheets":1,"sheets":["Foglio1"],"not_rendered":{"charts":0,"images":6,"macros":0,"external_links":0,"defined_names":3,"comments":0,"pivot_tables":0},"unopened":[],"bounds":{"document_bytes":16777216,"sheet_cells":100000,"run_cost":"one","rows_first":2000,"rows_last":500,"rows_between":2000,"halvings":0,"cell_chars":16384,"cell_head_chars":4096},"cells_cut":0,"cells_raw":0,"read":"whole","date_system":"1900"}

{"sheet":"Foglio1","index":0,"n_rows":54,"n_cols":11,"rows_kept":54,"cut":false,"hidden":false,"merged":[[6,8,6,11],[8,1,8,2],[10,1,10,2],[8,8,8,11],[10,8,10,11],[8,5,8,7],[10,5,10,7]]}
[]
[]
[]
[]
[]
[]
[null,"Responsabile riservazione/Reservierungsmanager/Responsable des réservations (Club) :"]
[]
[null,"Cognome\nNachname\nNom",null,"Nome\nVorname\nPrénom","Anno nascita\nGeburtsjahr\nAnnée naissance","Cellulare\nMobiltelefon\nportable",null,null,"e-mail"]
[]
[]
[]
[]
[null,"No","Cognome","Nome","Anno nascita","Kyu/Dan",null,"Tassa SKISF","Pranzo G+S",null,"Costo"]
[null,1,{"$nulls":8},{"$f":"H15+I15","v":0}]
[null,2,{"$nulls":8},{"$f":"H16+I16","v":0}]
[null,3,{"$nulls":8},0]
[null,4,{"$nulls":8},0]
[null,5,{"$nulls":8},0]
[null,6,{"$nulls":8},0]
[null,7,{"$nulls":8},0]
[null,8,{"$nulls":8},0]
[null,9,{"$nulls":8},0]
[null,10,{"$nulls":8},0]
[null,11,{"$nulls":8},0]
[null,12,{"$nulls":8},0]
[null,13,{"$nulls":8},0]
[null,14,{"$nulls":8},0]
[null,15,{"$nulls":8},0]
[null,16,{"$nulls":8},0]
[null,17,{"$nulls":8},0]
[null,18,{"$nulls":8},0]
[null,19,{"$nulls":8},0]
[null,20,{"$nulls":8},0]
[null,21,{"$nulls":8},0]
[null,22,{"$nulls":8},0]
[null,23,{"$nulls":8},0]
[null,24,{"$nulls":8},0]
[null,25,{"$nulls":8},0]
[null,26,{"$nulls":8},0]
[null,27,{"$nulls":8},0]
[null,28,{"$nulls":8},0]
[null,29,{"$nulls":8},0]
[null,30,{"$nulls":8},0]
[]
[null,null,"Tassa SKISF","Fr.",{"$nulls":6},{"$f":"SUM(K15:K44)","v":0}]
[null,null,"Pranzo - Mittag","Fr.",15]
[]
[null,null,"Da inviare al recapito sotto indicato"]
[null,null,"A envoyer à l'adresse indiquée ci-dessous"]
[null,null,"Zu senden an die unten angegebene Adresse"]
[]
[null,null,"Il Presidente",{"$nulls":5},"Il segretario/cassiere"]
[null,null,"Giuseppe Vaghi",{"$nulls":5},"Fabiano Falcetti"]